[Event "Titled Tuesday Blitz May 9 Late 2023"]
[White "Foerster-Yialamas, Lucas"]
[Black "Lenaerts, Lennert"]
[WhiteFideId "30901774"]
[BlackFideId "211435"]
[WhiteElo "2067"]
[BlackElo "2334"]
[Result "0-1"]
[Round "03"]
[TimeControl "180+2"]
[Date "2023.05.09"]
[WhiteClock "0:00:04"]
[BlackClock "0:00:20"]

1. e4 {[%clk 0:02:59]}  e5 {[%clk 0:02:56]} 2. Nf3 {[%clk 0:02:58]}  Nc6 {[%clk 0:02:54]} 3. Bc4 {[%clk 0:02:58]}  Bc5 {[%clk 0:02:53]} 4. c3 {[%clk 0:02:57]}  Nf6 {[%clk 0:02:53]} 5. d4 {[%clk 0:02:55]}  exd4 {[%clk 0:02:54]} 6. O-O {[%clk 0:02:52]}  Nxe4 {[%clk 0:02:44]} 7. cxd4 {[%clk 0:02:51]}  d5 {[%clk 0:02:44]} 8. dxc5 {[%clk 0:02:50]}  dxc4 {[%clk 0:02:45]} 9. Qe2 {[%clk 0:02:49]}  Qd3 {[%clk 0:02:45]} 10. Re1 {[%clk 0:02:47]}  f5 {[%clk 0:02:43]} 11. Nc3 {[%clk 0:02:40]}  O-O {[%clk 0:02:41]} 12. Nxe4 {[%clk 0:02:40]}  fxe4 {[%clk 0:02:41]} 13. Qxe4 {[%clk 0:02:41]}  Bf5 {[%clk 0:02:39]} 14. Qxd3 {[%clk 0:02:38]}  cxd3 {[%clk 0:02:36]} 15. a3 {[%clk 0:02:33]}  a5 {[%clk 0:02:32]} 16. Bd2 {[%clk 0:02:33]}  Rfe8 {[%clk 0:02:27]} 17. Bc3 {[%clk 0:02:31]}  h6 {[%clk 0:02:26]} 18. b4 {[%clk 0:02:30]}  axb4 {[%clk 0:02:25]} 19. axb4 {[%clk 0:02:31]}  Rxa1 {[%clk 0:02:25]} 20. Rxa1 {[%clk 0:02:27]}  Ne7 {[%clk 0:02:24]} 21. Re1 {[%clk 0:02:26]}  Kf8 {[%clk 0:02:23]} 22. b5 {[%clk 0:02:22]}  Ra8 {[%clk 0:02:17]} 23. Ne5 {[%clk 0:02:20]}  Nd5 {[%clk 0:02:15]} 24. Bd2 {[%clk 0:02:20]}  Ra2 {[%clk 0:02:14]} 25. Rd1 {[%clk 0:02:20]}  Rb2 {[%clk 0:02:10]} 26. g4 {[%clk 0:02:09]}  Bh7 {[%clk 0:02:09]} 27. b6 {[%clk 0:02:06]}  cxb6 {[%clk 0:02:06]} 28. Nc4 {[%clk 0:02:06]}  Rb5 {[%clk 0:01:39]} 29. Nxb6 {[%clk 0:02:05]}  Nxb6 {[%clk 0:01:39]} 30. cxb6 {[%clk 0:02:06]}  Rxb6 {[%clk 0:01:40]} 31. Be3 {[%clk 0:02:01]}  Rb2 {[%clk 0:01:37]} 32. Rd2 {[%clk 0:02:02]}  Rb1+ {[%clk 0:01:31]} 33. Kg2 {[%clk 0:02:02]}  b5 {[%clk 0:01:32]} 34. Kf3 {[%clk 0:01:59]}  b4 {[%clk 0:01:31]} 35. Kf4 {[%clk 0:01:56]}  b3 {[%clk 0:01:31]} 36. Ke5 {[%clk 0:01:56]}  Kf7 {[%clk 0:01:28]} 37. Kd4 {[%clk 0:01:55]}  Ke6 {[%clk 0:01:25]} 38. Kc3 {[%clk 0:01:54]}  Kd5 {[%clk 0:01:24]} 39. f3 {[%clk 0:01:49]}  Bg6 {[%clk 0:01:19]} 40. h4 {[%clk 0:01:45]}  Bh7 {[%clk 0:01:16]} 41. h5 {[%clk 0:01:42]}  Ke6 {[%clk 0:01:16]} 42. f4 {[%clk 0:01:37]}  Be4 {[%clk 0:01:13]} 43. g5 {[%clk 0:01:37]}  Kf5 {[%clk 0:01:08]} 44. Rf2 {[%clk 0:01:18]}  Kg4 {[%clk 0:01:03]} 45. gxh6 {[%clk 0:01:14]}  gxh6 {[%clk 0:01:03]} 46. f5 {[%clk 0:01:15]}  Kxh5 {[%clk 0:00:26]} 47. f6 {[%clk 0:01:12]}  Bg6 {[%clk 0:00:27]} 48. f7 {[%clk 0:01:05]}  Bxf7 {[%clk 0:00:26]} 49. Rxf7 {[%clk 0:01:06]}  b2 {[%clk 0:00:27]} 50. Rb7 {[%clk 0:00:59]}  Re1 {[%clk 0:00:26]} 51. Bxh6 {[%clk 0:00:14]}  b1=Q {[%clk 0:00:17]} 52. Rxb1 {[%clk 0:00:14]}  Rxb1 {[%clk 0:00:18]} 53. Bd2 {[%clk 0:00:14]}  Kg4 {[%clk 0:00:18]} 54. Kxd3 {[%clk 0:00:14]}  Kf3 {[%clk 0:00:18]} 55. Kc2 {[%clk 0:00:14]}  Rb7 {[%clk 0:00:19]} 56. Kd3 {[%clk 0:00:12]}  Rd7+ {[%clk 0:00:19]} 57. Kc3 {[%clk 0:00:12]}  Ke4 {[%clk 0:00:18]} 58. Bg5 {[%clk 0:00:09]}  Rd3+ {[%clk 0:00:18]} 59. Kc4 {[%clk 0:00:08]}  Rg3 {[%clk 0:00:19]} 60. Be7 {[%clk 0:00:07]}  Rg7 {[%clk 0:00:18]} 61. Bc5 {[%clk 0:00:07]}  Rc7 {[%clk 0:00:18]} 62. Kb5 {[%clk 0:00:08]}  Kd5 {[%clk 0:00:18]} 63. Bb6 {[%clk 0:00:08]}  Rb7 {[%clk 0:00:18]} 64. Ka6 {[%clk 0:00:05]}  Kc6 {[%clk 0:00:19]} 65. Bf2 {[%clk 0:00:05]}  Rb2 {[%clk 0:00:19]} 66. Be1 {[%clk 0:00:02]}  Ra2+ {[%clk 0:00:18]} 67. Ba5 {[%clk 0:00:03]}  Ra1 {[%clk 0:00:18]} 68. Ka7 {[%clk 0:00:02]}  Rxa5+ {[%clk 0:00:19]} 69. Kb8 {[%clk 0:00:03]}  Ra4 {[%clk 0:00:19]} 70. Kc8 {[%clk 0:00:04]}  Ra8# {[%clk 0:00:20]} 0-1


[Site "https://www.chess.com"]

[Event "Titled Tuesday Blitz May 9 Late 2023"]
[White "Kovalevsky, Stanislav"]
[Black "Koellner, Ruben Gideon"]
[WhiteFideId "13508598"]
[BlackFideId "12993093"]
[WhiteElo "2174"]
[BlackElo "2314"]
[Result "1/2-1/2"]
[Round "03"]
[TimeControl "180+2"]
[Date "2023.05.09"]
[WhiteClock "0:00:11"]
[BlackClock "0:00:02"]

1. c4 {[%clk 0:02:43]}  d6 {[%clk 0:02:59]} 2. Nc3 {[%clk 0:02:43]}  e5 {[%clk 0:02:57]} 3. g3 {[%clk 0:02:43]}  Nf6 {[%clk 0:02:56]} 4. Bg2 {[%clk 0:02:43]}  Be7 {[%clk 0:02:56]} 5. b4 {[%clk 0:02:43]}  O-O {[%clk 0:02:56]} 6. Bb2 {[%clk 0:02:44]}  c6 {[%clk 0:02:56]} 7. e3 {[%clk 0:02:43]}  Be6 {[%clk 0:02:57]} 8. d3 {[%clk 0:02:43]}  d5 {[%clk 0:02:55]} 9. cxd5 {[%clk 0:02:42]}  cxd5 {[%clk 0:02:56]} 10. a3 {[%clk 0:02:42]}  a5 {[%clk 0:02:55]} 11. b5 {[%clk 0:02:41]}  Nbd7 {[%clk 0:02:55]} 12. Nge2 {[%clk 0:02:41]}  Re8 {[%clk 0:02:41]} 13. O-O {[%clk 0:02:40]}  Rc8 {[%clk 0:02:40]} 14. h3 {[%clk 0:02:41]}  h6 {[%clk 0:02:37]} 15. f4 {[%clk 0:02:41]}  exf4 {[%clk 0:02:30]} 16. exf4 {[%clk 0:02:41]}  Nc5 {[%clk 0:02:20]} 17. Nd4 {[%clk 0:02:32]}  Qb6 {[%clk 0:02:06]} 18. Kh2 {[%clk 0:02:25]}  Bd6 {[%clk 0:02:00]} 19. Nxe6 {[%clk 0:02:14]}  fxe6 {[%clk 0:01:59]} 20. Re1 {[%clk 0:02:13]}  d4 {[%clk 0:01:34]} 21. Ne2 {[%clk 0:01:58]}  Qxb5 {[%clk 0:01:01]} 22. Bxd4 {[%clk 0:01:57]}  Nxd3 {[%clk 0:01:01]} 23. Rb1 {[%clk 0:01:57]}  Qa6 {[%clk 0:01:00]} 24. Bxb7 {[%clk 0:01:56]}  Qc4 {[%clk 0:00:55]} 25. Bxc8 {[%clk 0:01:49]}  Nxe1 {[%clk 0:00:49]} 26. Rc1 {[%clk 0:01:14]}  Nf3+ {[%clk 0:00:23]} 27. Kh1 {[%clk 0:01:11]}  Qd5 {[%clk 0:00:14]} 28. Bxf6 {[%clk 0:01:11]}  Nd2+ {[%clk 0:00:12]} 29. Kh2 {[%clk 0:01:05]}  gxf6 {[%clk 0:00:12]} 30. Bd7 {[%clk 0:00:51]}  Rd8 {[%clk 0:00:09]} 31. Bc6 {[%clk 0:00:51]}  Qd3 {[%clk 0:00:06]} 32. Nc3 {[%clk 0:00:28]}  Bxa3 {[%clk 0:00:05]} 33. Qg4+ {[%clk 0:00:22]}  Kh8 {[%clk 0:00:05]} 34. Qh4 {[%clk 0:00:19]}  Bxc1 {[%clk 0:00:03]} 35. Qxf6+ {[%clk 0:00:16]}  Kg8 {[%clk 0:00:02]} 36. Qxe6+ {[%clk 0:00:10]}  Kf8 {[%clk 0:00:01]} 37. Qf6+ {[%clk 0:00:09]}  Kg8 {[%clk 0:00:02]} 38. Qe6+ {[%clk 0:00:10]}  Kf8 {[%clk 0:00:02]} 39. Qf6+ {[%clk 0:00:10]}  Kg8 {[%clk 0:00:02]} 40. Qe6+ {[%clk 0:00:11]} 1/2-1/2


[Site "https://www.chess.com"]

[Event "Titled Tuesday Blitz May 9 Late 2023"]
[White "Sochacki, Christophe"]
[Black "Vovk, Orest"]
[WhiteFideId "662569"]
[BlackFideId "14113490"]
[WhiteElo "2501"]
[BlackElo "2215"]
[Result "1-0"]
[Round "03"]
[TimeControl "180+2"]
[Date "2023.05.09"]
[WhiteClock "0:01:09"]
[BlackClock "0:00:30"]

1. d4 {[%clk 0:03:00]}  e5 {[%clk 0:02:50]} 2. dxe5 {[%clk 0:03:00]}  Nc6 {[%clk 0:02:49]} 3. Nf3 {[%clk 0:02:59]}  Qe7 {[%clk 0:02:48]} 4. Bf4 {[%clk 0:02:06]}  Qb4+ {[%clk 0:02:39]} 5. Nc3 {[%clk 0:02:06]}  Qxf4 {[%clk 0:02:35]} 6. Nd5 {[%clk 0:02:07]}  Qa4 {[%clk 0:02:33]} 7. Nxc7+ {[%clk 0:02:05]}  Kd8 {[%clk 0:02:34]} 8. Nxa8 {[%clk 0:02:05]}  Qb4+ {[%clk 0:02:34]} 9. c3 {[%clk 0:01:56]}  Qxb2 {[%clk 0:02:34]} 10. Rc1 {[%clk 0:01:55]}  Qxa2 {[%clk 0:02:28]} 11. e3 {[%clk 0:01:54]}  Qe6 {[%clk 0:02:03]} 12. Qa4 {[%clk 0:01:38]}  Nxe5 {[%clk 0:01:34]} 13. Nd4 {[%clk 0:01:16]}  Qd5 {[%clk 0:01:05]} 14. Qxa7 {[%clk 0:01:14]}  Bc5 {[%clk 0:00:58]} 15. Qa5+ {[%clk 0:01:14]}  Ke7 {[%clk 0:00:45]} 16. Nc7 {[%clk 0:01:13]}  Qe4 {[%clk 0:00:36]} 17. Qxc5+ {[%clk 0:01:10]}  d6 {[%clk 0:00:30]} 18. Nd5+ {[%clk 0:01:09]} 1-0


[Site "https://www.chess.com"]

[Event "Titled Tuesday Blitz May 9 Late 2023"]
[White "Koutsin"]
[Black "Sun, Rick"]
[BlackFideId "30909481"]
[WhiteElo "2443"]
[BlackElo "2169"]
[Result "0-1"]
[Round "03"]
[TimeControl "180+2"]
[Date "2023.05.09"]
[WhiteClock "0:00:02"]
[BlackClock "0:00:05"]

1. d4 {[%clk 0:03:00]}  d6 {[%clk 0:03:00]} 2. Nf3 {[%clk 0:03:00]}  Nf6 {[%clk 0:03:00]} 3. c4 {[%clk 0:03:00]}  g6 {[%clk 0:03:01]} 4. Nc3 {[%clk 0:03:00]}  Bg7 {[%clk 0:03:01]} 5. e4 {[%clk 0:03:01]}  O-O {[%clk 0:03:02]} 6. Be2 {[%clk 0:03:01]}  e5 {[%clk 0:03:02]} 7. O-O {[%clk 0:03:01]}  Nc6 {[%clk 0:03:03]} 8. d5 {[%clk 0:03:01]}  Ne7 {[%clk 0:03:03]} 9. Ne1 {[%clk 0:03:02]}  Nd7 {[%clk 0:03:03]} 10. Be3 {[%clk 0:03:02]}  f5 {[%clk 0:03:04]} 11. f3 {[%clk 0:03:02]}  f4 {[%clk 0:03:05]} 12. Bf2 {[%clk 0:03:03]}  g5 {[%clk 0:03:05]} 13. a4 {[%clk 0:03:03]}  Rf6 {[%clk 0:03:06]} 14. a5 {[%clk 0:03:00]}  Rh6 {[%clk 0:03:06]} 15. Nd3 {[%clk 0:03:00]}  Qe8 {[%clk 0:03:05]} 16. Be1 {[%clk 0:02:55]}  Nf6 {[%clk 0:01:52]} 17. Nf2 {[%clk 0:02:48]}  Ng6 {[%clk 0:01:22]} 18. b4 {[%clk 0:02:39]}  Nh4 {[%clk 0:01:17]} 19. Ng4 {[%clk 0:01:33]}  Rg6 {[%clk 0:00:43]} 20. c5 {[%clk 0:01:31]}  h5 {[%clk 0:00:41]} 21. Nxf6+ {[%clk 0:01:30]}  Bxf6 {[%clk 0:00:41]} 22. g3 {[%clk 0:00:34]}  Bh3 {[%clk 0:00:34]} 23. Rf2 {[%clk 0:00:34]}  g4 {[%clk 0:00:32]} 24. fxg4 {[%clk 0:00:34]}  hxg4 {[%clk 0:00:29]} 25. gxh4 {[%clk 0:00:28]}  Bxh4 {[%clk 0:00:28]} 26. Rf1 {[%clk 0:00:20]}  g3 {[%clk 0:00:15]} 27. hxg3 {[%clk 0:00:18]}  Bxg3 {[%clk 0:00:14]} 28. Bxg3 {[%clk 0:00:18]}  Rxg3+ {[%clk 0:00:15]} 29. Kf2 {[%clk 0:00:19]}  Rxc3 {[%clk 0:00:09]} 30. Rg1+ {[%clk 0:00:18]}  Rg3 {[%clk 0:00:09]} 31. Rxg3+ {[%clk 0:00:17]}  fxg3+ {[%clk 0:00:10]} 32. Kxg3 {[%clk 0:00:18]}  Qg6+ {[%clk 0:00:10]} 33. Kxh3 {[%clk 0:00:17]}  Kg7 {[%clk 0:00:11]} 34. Bg4 {[%clk 0:00:17]}  Rh8+ {[%clk 0:00:08]} 35. Kg3 {[%clk 0:00:17]}  Qg5 {[%clk 0:00:07]} 36. Ra2 {[%clk 0:00:05]}  Qf4+ {[%clk 0:00:06]} 37. Kg2 {[%clk 0:00:05]}  Rh2+ {[%clk 0:00:05]} 38. Kg1 {[%clk 0:00:06]}  Rxa2 {[%clk 0:00:06]} 39. Qf3 {[%clk 0:00:02]}  Qc1+ {[%clk 0:00:05]} 0-1


[Site "https://www.chess.com"]

[Event "Titled Tuesday Blitz May 9 Late 2023"]
[White "Jimenez Almeida, Luis David"]
[Black "MKlose11"]
[WhiteFideId "22242244"]
[WhiteElo "2245"]
[BlackElo "2607"]
[Result "0-1"]
[Round "03"]
[TimeControl "180+2"]
[Date "2023.05.09"]
[WhiteClock "0:00:02"]
[BlackClock "0:00:05"]

1. Nf3 {[%clk 0:03:00]}  Nf6 {[%clk 0:02:59]} 2. b3 {[%clk 0:03:00]}  c5 {[%clk 0:03:00]} 3. Bb2 {[%clk 0:03:00]}  Nc6 {[%clk 0:03:00]} 4. c4 {[%clk 0:03:00]}  d6 {[%clk 0:03:00]} 5. g3 {[%clk 0:03:00]}  g6 {[%clk 0:03:01]} 6. d4 {[%clk 0:03:00]}  cxd4 {[%clk 0:03:00]} 7. Nxd4 {[%clk 0:03:01]}  Bg7 {[%clk 0:02:59]} 8. Bg2 {[%clk 0:03:01]}  Bd7 {[%clk 0:02:47]} 9. O-O {[%clk 0:03:01]}  O-O {[%clk 0:02:47]} 10. h3 {[%clk 0:02:55]}  Qa5 {[%clk 0:02:46]} 11. e3 {[%clk 0:02:54]}  Rfe8 {[%clk 0:02:44]} 12. Nc3 {[%clk 0:02:54]}  Rac8 {[%clk 0:02:43]} 13. Rc1 {[%clk 0:02:42]}  a6 {[%clk 0:02:42]} 14. Qe2 {[%clk 0:02:31]}  Qh5 {[%clk 0:02:39]} 15. Qxh5 {[%clk 0:02:19]}  Nxh5 {[%clk 0:02:40]} 16. Nd5 {[%clk 0:02:11]}  Nxd4 {[%clk 0:02:24]} 17. Bxd4 {[%clk 0:02:11]}  Bc6 {[%clk 0:02:20]} 18. Rfd1 {[%clk 0:01:55]}  Bxd5 {[%clk 0:02:10]} 19. Bxd5 {[%clk 0:01:54]}  Bxd4 {[%clk 0:02:09]} 20. Rxd4 {[%clk 0:01:46]}  Rc7 {[%clk 0:02:07]} 21. a4 {[%clk 0:01:41]}  Nf6 {[%clk 0:02:03]} 22. Bf3 {[%clk 0:01:41]}  a5 {[%clk 0:01:49]} 23. g4 {[%clk 0:01:38]}  Nd7 {[%clk 0:01:49]} 24. Bd1 {[%clk 0:01:25]}  Nc5 {[%clk 0:01:42]} 25. Bc2 {[%clk 0:01:25]}  Rc6 {[%clk 0:01:43]} 26. Rcd1 {[%clk 0:01:25]}  Rb6 {[%clk 0:01:43]} 27. Rb1 {[%clk 0:01:21]}  Rb4 {[%clk 0:01:42]} 28. Kg2 {[%clk 0:01:15]}  Ra8 {[%clk 0:01:41]} 29. Kg3 {[%clk 0:01:13]}  Ra6 {[%clk 0:01:41]} 30. e4 {[%clk 0:00:56]}  Rab6 {[%clk 0:01:40]} 31. e5 {[%clk 0:00:57]}  dxe5 {[%clk 0:01:37]} 32. Rd5 {[%clk 0:00:57]}  Nxb3 {[%clk 0:01:31]} 33. Bxb3 {[%clk 0:00:56]}  Rxb3+ {[%clk 0:01:32]} 34. Rxb3 {[%clk 0:00:57]}  Rxb3+ {[%clk 0:01:32]} 35. Kg2 {[%clk 0:00:55]}  f6 {[%clk 0:00:59]} 36. Rxa5 {[%clk 0:00:50]}  Rb4 {[%clk 0:00:57]} 37. Rb5 {[%clk 0:00:45]}  Rxa4 {[%clk 0:00:55]} 38. Rxb7 {[%clk 0:00:44]}  Kf7 {[%clk 0:00:55]} 39. Rc7 {[%clk 0:00:39]}  Ke6 {[%clk 0:00:51]} 40. f3 {[%clk 0:00:37]}  Ra8 {[%clk 0:00:47]} 41. Rb7 {[%clk 0:00:30]}  Rc8 {[%clk 0:00:45]} 42. Rb6+ {[%clk 0:00:28]}  Kd7 {[%clk 0:00:43]} 43. Rb7+ {[%clk 0:00:26]}  Rc7 {[%clk 0:00:43]} 44. Rb4 {[%clk 0:00:27]}  Kd6 {[%clk 0:00:40]} 45. h4 {[%clk 0:00:25]}  Kc5 {[%clk 0:00:40]} 46. Ra4 {[%clk 0:00:25]}  Kd4 {[%clk 0:00:39]} 47. Kg3 {[%clk 0:00:23]}  h6 {[%clk 0:00:37]} 48. g5 {[%clk 0:00:19]}  hxg5 {[%clk 0:00:36]} 49. hxg5 {[%clk 0:00:20]}  fxg5 {[%clk 0:00:30]} 50. Ra6 {[%clk 0:00:20]}  Rxc4 {[%clk 0:00:30]} 51. Rxg6 {[%clk 0:00:20]}  Rc3 {[%clk 0:00:30]} 52. Re6 {[%clk 0:00:19]}  Rc7 {[%clk 0:00:25]} 53. Kg4 {[%clk 0:00:18]}  Kd5 {[%clk 0:00:22]} 54. Rg6 {[%clk 0:00:19]}  Rc1 {[%clk 0:00:18]} 55. Rg7 {[%clk 0:00:15]}  Rg1+ {[%clk 0:00:17]} 56. Kf5 {[%clk 0:00:14]}  Rg3 {[%clk 0:00:13]} 57. Rxe7 {[%clk 0:00:13]}  Rxf3+ {[%clk 0:00:14]} 58. Kxg5 {[%clk 0:00:13]}  e4 {[%clk 0:00:12]} 59. Kg4 {[%clk 0:00:13]}  Rf8 {[%clk 0:00:11]} 60. Rd7+ {[%clk 0:00:11]}  Kc4 {[%clk 0:00:11]} 61. Kg3 {[%clk 0:00:07]}  e3 {[%clk 0:00:09]} 62. Kg2 {[%clk 0:00:06]}  Kc3 {[%clk 0:00:09]} 63. Re7 {[%clk 0:00:05]}  Kd2 {[%clk 0:00:09]} 64. Rd7+ {[%clk 0:00:06]}  Ke1 {[%clk 0:00:07]} 65. Re7 {[%clk 0:00:04]}  e2 {[%clk 0:00:07]} 66. Ra7 {[%clk 0:00:04]}  Rg8+ {[%clk 0:00:07]} 67. Kf3 {[%clk 0:00:05]}  Kf1 {[%clk 0:00:06]} 68. Rh7 {[%clk 0:00:02]}  Rf8+ {[%clk 0:00:05]} 0-1


[Site "https://www.chess.com"]

[Event "Titled Tuesday Blitz May 9 Late 2023"]
[White "Wadsworth, Matthew J"]
[Black "sebastianmarinp"]
[WhiteFideId "415804"]
[WhiteElo "2347"]
[BlackElo "2438"]
[Result "1-0"]
[Round "03"]
[TimeControl "180+2"]
[Date "2023.05.09"]
[WhiteClock "0:00:17"]
[BlackClock "0:00:00"]

1. Nf3 {[%clk 0:03:00]}  Nf6 {[%clk 0:02:59]} 2. g3 {[%clk 0:02:59]}  d5 {[%clk 0:02:59]} 3. Bg2 {[%clk 0:02:59]}  c6 {[%clk 0:02:59]} 4. c4 {[%clk 0:02:58]}  Bg4 {[%clk 0:02:55]} 5. Ne5 {[%clk 0:02:58]}  Bf5 {[%clk 0:02:50]} 6. cxd5 {[%clk 0:02:58]}  cxd5 {[%clk 0:02:47]} 7. Nc3 {[%clk 0:02:52]}  e6 {[%clk 0:02:44]} 8. g4 {[%clk 0:02:52]}  Bg6 {[%clk 0:02:44]} 9. h4 {[%clk 0:02:51]}  Bd6 {[%clk 0:02:29]} 10. Qa4+ {[%clk 0:02:43]}  Ke7 {[%clk 0:02:16]} 11. d4 {[%clk 0:02:37]}  h6 {[%clk 0:01:59]} 12. Nxg6+ {[%clk 0:02:34]}  fxg6 {[%clk 0:02:00]} 13. Qc2 {[%clk 0:02:25]}  Qe8 {[%clk 0:01:48]} 14. g5 {[%clk 0:02:17]}  Nh5 {[%clk 0:01:47]} 15. e4 {[%clk 0:01:28]}  Nc6 {[%clk 0:01:45]} 16. exd5 {[%clk 0:01:17]}  Nxd4 {[%clk 0:01:45]} 17. Qe4 {[%clk 0:01:17]}  e5 {[%clk 0:01:43]} 18. Be3 {[%clk 0:01:08]}  Nf5 {[%clk 0:01:30]} 19. O-O-O {[%clk 0:00:57]}  Rc8 {[%clk 0:01:18]} 20. Kb1 {[%clk 0:00:56]}  Rxc3 {[%clk 0:00:51]} 21. bxc3 {[%clk 0:00:55]}  Qc8 {[%clk 0:00:51]} 22. c4 {[%clk 0:00:49]}  Qc7 {[%clk 0:00:26]} 23. Bh3 {[%clk 0:00:40]}  Rf8 {[%clk 0:00:19]} 24. c5 {[%clk 0:00:28]}  Bxc5 {[%clk 0:00:12]} 25. Bxc5+ {[%clk 0:00:28]}  Qxc5 {[%clk 0:00:12]} 26. Qxe5+ {[%clk 0:00:29]}  Kd8 {[%clk 0:00:09]} 27. Qb8+ {[%clk 0:00:28]}  Kd7 {[%clk 0:00:07]} 28. Qxb7+ {[%clk 0:00:27]}  Kd8 {[%clk 0:00:04]} 29. Rhe1 {[%clk 0:00:23]}  Nf4 {[%clk 0:00:01]} 30. Bxf5 {[%clk 0:00:18]}  Rxf5 {[%clk 0:00:01]} 31. Qb8+ {[%clk 0:00:17]}  Kd7 {[%clk 0:00:01]} 32. Qe8+ {[%clk 0:00:17]}  Kc7 {[%clk 0:00:01]} 33. Re7+ {[%clk 0:00:16]}  Kb6 {[%clk 0:00:01]} 34. Qb8+ {[%clk 0:00:16]}  Ka6 {[%clk 0:00:01]} 35. Qb7+ {[%clk 0:00:16]}  Ka5 {[%clk 0:00:01]} 36. Qxa7+ {[%clk 0:00:16]}  Qxa7 {[%clk 0:00:02]} 37. Rxa7+ {[%clk 0:00:16]}  Kb6 {[%clk 0:00:03]} 38. Rxg7 {[%clk 0:00:17]}  Nxd5 {[%clk 0:00:00]} 39. Rxg6+ {[%clk 0:00:17]} 1-0


[Site "https://www.chess.com"]

[Event "Titled Tuesday Blitz May 9 Late 2023"]
[White "Rios Escobar, Adan"]
[Black "Kim, Sergey"]
[WhiteFideId "3403645"]
[BlackFideId "13700570"]
[WhiteElo "2437"]
[BlackElo "2602"]
[Result "0-1"]
[Round "03"]
[TimeControl "180+2"]
[Date "2023.05.09"]
[WhiteClock "0:00:00"]
[BlackClock "0:00:19"]

1. d4 {[%clk 0:03:00]}  Nf6 {[%clk 0:02:59]} 2. g3 {[%clk 0:02:54]}  g6 {[%clk 0:02:59]} 3. Bg2 {[%clk 0:02:54]}  Bg7 {[%clk 0:03:00]} 4. e4 {[%clk 0:02:54]}  d6 {[%clk 0:02:59]} 5. Ne2 {[%clk 0:02:55]}  O-O {[%clk 0:02:59]} 6. O-O {[%clk 0:02:55]}  c6 {[%clk 0:02:57]} 7. a4 {[%clk 0:02:55]}  a5 {[%clk 0:02:57]} 8. Nbc3 {[%clk 0:02:56]}  Qc7 {[%clk 0:02:56]} 9. h3 {[%clk 0:02:56]}  e5 {[%clk 0:02:55]} 10. Be3 {[%clk 0:02:56]}  Na6 {[%clk 0:02:53]} 11. g4 {[%clk 0:02:52]}  Nb4 {[%clk 0:02:52]} 12. Ng3 {[%clk 0:02:48]}  Be6 {[%clk 0:02:47]} 13. b3 {[%clk 0:02:47]}  Rad8 {[%clk 0:02:43]} 14. g5 {[%clk 0:02:34]}  Nd7 {[%clk 0:02:41]} 15. Rc1 {[%clk 0:02:02]}  d5 {[%clk 0:02:11]} 16. exd5 {[%clk 0:01:56]}  cxd5 {[%clk 0:02:11]} 17. Nb5 {[%clk 0:01:53]}  Qb8 {[%clk 0:02:10]} 18. c3 {[%clk 0:01:37]}  Nc6 {[%clk 0:02:10]} 19. Qd2 {[%clk 0:01:27]}  exd4 {[%clk 0:01:59]} 20. cxd4 {[%clk 0:01:25]}  Rc8 {[%clk 0:01:43]} 21. Bf4 {[%clk 0:01:23]}  Qa8 {[%clk 0:01:40]} 22. Ne2 {[%clk 0:01:04]}  Nb4 {[%clk 0:01:36]} 23. Nd6 {[%clk 0:00:41]}  Rc6 {[%clk 0:01:28]} 24. Rc3 {[%clk 0:00:20]}  Qa6 {[%clk 0:01:25]} 25. Nb5 {[%clk 0:00:15]}  Rfc8 {[%clk 0:01:05]} 26. Rfc1 {[%clk 0:00:15]}  Qb6 {[%clk 0:00:57]} 27. h4 {[%clk 0:00:10]}  Bf8 {[%clk 0:00:53]} 28. Bf3 {[%clk 0:00:10]}  Rxc3 {[%clk 0:00:49]} 29. Rxc3 {[%clk 0:00:10]}  Nc6 {[%clk 0:00:49]} 30. Rc1 {[%clk 0:00:09]}  Ne7 {[%clk 0:00:44]} 31. Kg2 {[%clk 0:00:08]}  Rc6 {[%clk 0:00:43]} 32. h5 {[%clk 0:00:06]}  Nf5 {[%clk 0:00:42]} 33. hxg6 {[%clk 0:00:06]}  hxg6 {[%clk 0:00:41]} 34. Bg4 {[%clk 0:00:04]}  Rxc1 {[%clk 0:00:32]} 35. Qxc1 {[%clk 0:00:02]}  Nxd4 {[%clk 0:00:30]} 36. Nexd4 {[%clk 0:00:01]}  Bxg4 {[%clk 0:00:30]} 37. Qe3 {[%clk 0:00:01]}  Be6 {[%clk 0:00:25]} 38. Qg3 {[%clk 0:00:02]}  Bg7 {[%clk 0:00:20]} 39. Bd6 {[%clk 0:00:01]}  Bxd4 {[%clk 0:00:19]} 40. Nxd4 {[%clk 0:00:00]}  Qxd4 {[%clk 0:00:19]} 0-1


[Site "https://www.chess.com"]

[Event "Titled Tuesday Blitz May 9 Late 2023"]
[White "Aggelis, Nikolaos"]
[Black "Fernandez Lopez, Ruben"]
[WhiteFideId "4213220"]
[BlackFideId "24518298"]
[WhiteElo "2189"]
[BlackElo "2240"]
[Result "0-1"]
[Round "03"]
[TimeControl "180+2"]
[Date "2023.05.09"]
[WhiteClock "0:01:08"]
[BlackClock "0:02:35"]

1. c4 {[%clk 0:03:00]}  c6 {[%clk 0:02:55]} 2. e4 {[%clk 0:02:38]}  e5 {[%clk 0:02:54]} 3. Nf3 {[%clk 0:02:37]}  d6 {[%clk 0:02:53]} 4. d4 {[%clk 0:02:36]}  exd4 {[%clk 0:02:53]} 5. Nxd4 {[%clk 0:02:37]}  Nf6 {[%clk 0:02:54]} 6. f3 {[%clk 0:02:37]}  Be7 {[%clk 0:02:54]} 7. Nc3 {[%clk 0:02:37]}  O-O {[%clk 0:02:54]} 8. Be3 {[%clk 0:02:38]}  Re8 {[%clk 0:02:55]} 9. Be2 {[%clk 0:02:38]}  d5 {[%clk 0:02:55]} 10. cxd5 {[%clk 0:02:38]}  cxd5 {[%clk 0:02:55]} 11. exd5 {[%clk 0:02:15]}  Nxd5 {[%clk 0:02:55]} 12. Nxd5 {[%clk 0:02:15]}  Qxd5 {[%clk 0:02:55]} 13. O-O {[%clk 0:02:08]}  Bc5 {[%clk 0:02:54]} 14. Bf2 {[%clk 0:02:02]}  Bxd4 {[%clk 0:02:40]} 15. Kh1 {[%clk 0:01:41]}  Nc6 {[%clk 0:02:38]} 16. Qd2 {[%clk 0:01:31]}  Bf5 {[%clk 0:02:37]} 17. Rad1 {[%clk 0:01:31]}  Rad8 {[%clk 0:02:36]} 18. Qf4 {[%clk 0:01:17]}  Rxe2 {[%clk 0:02:35]} 19. Bxd4 {[%clk 0:01:08]}  Nxd4 {[%clk 0:02:35]} 0-1


[Site "https://www.chess.com"]

[Event "Titled Tuesday Blitz May 9 Late 2023"]
[White "Villuendas Valero, Adrian"]
[Black "ATM622"]
[WhiteFideId "2262460"]
[WhiteElo "2328"]
[BlackElo "2579"]
[Result "1/2-1/2"]
[Round "03"]
[TimeControl "180+2"]
[Date "2023.05.09"]
[WhiteClock "0:00:20"]
[BlackClock "0:01:20"]

1. d4 {[%clk 0:03:00]}  Nf6 {[%clk 0:02:59]} 2. Bg5 {[%clk 0:02:59]}  d5 {[%clk 0:02:57]} 3. Bxf6 {[%clk 0:02:58]}  exf6 {[%clk 0:02:57]} 4. e3 {[%clk 0:02:58]}  c6 {[%clk 0:02:54]} 5. g3 {[%clk 0:02:49]}  h5 {[%clk 0:02:51]} 6. h4 {[%clk 0:02:47]}  Bg4 {[%clk 0:02:45]} 7. Qd3 {[%clk 0:02:42]}  Qb6 {[%clk 0:02:41]} 8. b3 {[%clk 0:02:36]}  Nd7 {[%clk 0:02:37]} 9. Bg2 {[%clk 0:02:30]}  Bd6 {[%clk 0:02:27]} 10. Ne2 {[%clk 0:02:28]}  O-O {[%clk 0:02:25]} 11. O-O {[%clk 0:02:21]}  Rfe8 {[%clk 0:02:23]} 12. Nbc3 {[%clk 0:01:35]}  Rad8 {[%clk 0:02:16]} 13. Rfe1 {[%clk 0:01:28]}  a5 {[%clk 0:02:12]} 14. Na4 {[%clk 0:01:28]}  Qc7 {[%clk 0:02:11]} 15. c4 {[%clk 0:01:28]}  dxc4 {[%clk 0:02:06]} 16. bxc4 {[%clk 0:01:29]}  Bb4 {[%clk 0:02:01]} 17. Rec1 {[%clk 0:00:55]}  Ne5 {[%clk 0:02:01]} 18. Qc2 {[%clk 0:00:55]}  Nf3+ {[%clk 0:01:58]} 19. Kh1 {[%clk 0:00:51]}  c5 {[%clk 0:01:41]} 20. d5 {[%clk 0:00:47]}  b5 {[%clk 0:01:37]} 21. Nb2 {[%clk 0:00:42]}  bxc4 {[%clk 0:01:35]} 22. Nxc4 {[%clk 0:00:40]}  Rxd5 {[%clk 0:01:30]} 23. Ng1 {[%clk 0:00:39]}  Bf5 {[%clk 0:01:28]} 24. Qa4 {[%clk 0:00:38]}  Bd7 {[%clk 0:01:26]} 25. Qc2 {[%clk 0:00:36]}  Bf5 {[%clk 0:01:24]} 26. Qa4 {[%clk 0:00:32]}  Bd7 {[%clk 0:01:24]} 27. Qc2 {[%clk 0:00:20]}  Bf5 {[%clk 0:01:20]} 1/2-1/2


[Site "https://www.chess.com"]